[Event "*** Titled Tuesday Blitz"]
[Site "Chess.com"]
[Date "2021.04.27"]
[Round "7"]
[White "noblerone"]
[Black "szachuspl"]
[Result "1-0"]
[WhiteElo "2405"]
[BlackElo "2533"]
[TimeControl "180+1"]
[EndTime "11:17:10 PDT"]
[Termination "noblerone won by checkmate"]

1. d4 {[%clk 0:03:00.9]} 1... Nf6 {[%clk 0:02:58]} 2. Nf3 {[%clk 0:02:59.6]}
2... g6 {[%clk 0:02:57.8]} 3. Bg5 {[%clk 0:02:57.2]} 3... Bg7 {[%clk 0:02:57.9]}
4. Nbd2 {[%clk 0:02:56.6]} 4... h6 {[%clk 0:02:57.1]} 5. Bh4 {[%clk 0:02:56.5]}
5... d6 {[%clk 0:02:53.4]} 6. c3 {[%clk 0:02:56.4]} 6... g5 {[%clk 0:02:52.9]}
7. Bg3 {[%clk 0:02:56]} 7... Nh5 {[%clk 0:02:52.9]} 8. e3 {[%clk 0:02:51.9]}
8... O-O {[%clk 0:02:48]} 9. Bc4 {[%clk 0:02:28.2]} 9... Nxg3 {[%clk 0:02:38.5]}
10. hxg3 {[%clk 0:02:29.1]} 10... d5 {[%clk 0:02:38.5]} 11. Bd3 {[%clk
0:02:27.5]} 11... f5 {[%clk 0:02:32.8]} 12. Ne5 {[%clk 0:01:57.8]} 12... Nd7
{[%clk 0:02:26]} 13. Ndf3 {[%clk 0:01:31.2]} 13... c5 {[%clk 0:02:20.3]} 14.
Nxd7 {[%clk 0:01:29.1]} 14... Bxd7 {[%clk 0:02:17.4]} 15. Ne5 {[%clk 0:01:21.6]}
15... cxd4 {[%clk 0:02:07.6]} 16. exd4 {[%clk 0:01:20.4]} 16... Bxe5 {[%clk
0:01:59.5]} 17. dxe5 {[%clk 0:01:20.2]} 17... Kg7 {[%clk 0:01:57]} 18. Qh5
{[%clk 0:01:10.8]} 18... Qb6 {[%clk 0:01:53.7]} 19. O-O-O {[%clk 0:01:05.6]}
19... Qg6 {[%clk 0:01:49.1]} 20. Qe2 {[%clk 0:01:03.8]} 20... e6 {[%clk
0:01:48.5]} 21. f4 {[%clk 0:01:03.4]} 21... Rac8 {[%clk 0:01:39.3]} 22. Kb1
{[%clk 0:01:02.2]} 22... a6 {[%clk 0:01:31.4]} 23. Rh2 {[%clk 0:00:46]} 23... g4
{[%clk 0:01:29]} 24. Qe3 {[%clk 0:00:38.9]} 24... Qe8 {[%clk 0:01:26.6]} 25.
Rdh1 {[%clk 0:00:37.5]} 25... Rh8 {[%clk 0:01:26.2]} 26. Rh4 {[%clk 0:00:36.1]}
26... Bb5 {[%clk 0:01:22.9]} 27. Bc2 {[%clk 0:00:35.5]} 27... Qd7 {[%clk
0:01:14.2]} 28. Qd2 {[%clk 0:00:32.8]} 28... Rcd8 {[%clk 0:01:11.7]} 29. Qd1
{[%clk 0:00:32.7]} 29... d4 {[%clk 0:01:05.8]} 30. Rxg4+ {[%clk 0:00:20.2]}
30... fxg4 {[%clk 0:01:05.3]} 31. Qxg4+ {[%clk 0:00:20.4]} 31... Kf8 {[%clk
0:01:05.2]} 32. f5 {[%clk 0:00:17]} 32... d3 {[%clk 0:01:01.6]} 33. Bb3 {[%clk
0:00:17.3]} 33... exf5 {[%clk 0:00:56.2]} 34. Qg6 {[%clk 0:00:16.1]} 34... d2
{[%clk 0:00:43.8]} 35. Rd1 {[%clk 0:00:04.7]} 35... Bd3+ {[%clk 0:00:33.5]} 36.
Ka1 {[%clk 0:00:04.8]} 36... Qg7 {[%clk 0:00:33.8]} 37. Qb6 {[%clk 0:00:03.3]}
37... Qe7 {[%clk 0:00:31.6]} 38. e6 {[%clk 0:00:02.2]} 38... Kg7 {[%clk
0:00:30.2]} 39. Qf2 {[%clk 0:00:01.9]} 39... Be4 {[%clk 0:00:29.8]} 40. Rxd2
{[%clk 0:00:02.3]} 40... Rxd2 {[%clk 0:00:29.4]} 41. Qxd2 {[%clk 0:00:03.2]}
41... Rd8 {[%clk 0:00:29.7]} 42. Qe1 {[%clk 0:00:02.7]} 42... Qd6 {[%clk
0:00:29.7]} 43. a3 {[%clk 0:00:03.3]} 43... b5 {[%clk 0:00:28.9]} 44. Qe3 {[%clk
0:00:03.6]} 44... Qe7 {[%clk 0:00:27]} 45. Qf4 {[%clk 0:00:03.6]} 45... Rd6
{[%clk 0:00:27]} 46. g4 {[%clk 0:00:04.1]} 46... Rxe6 {[%clk 0:00:26.5]} 47.
gxf5 {[%clk 0:00:04.4]} 47... Rf6 {[%clk 0:00:25.3]} 48. Qg3+ {[%clk 0:00:04.4]}
48... Rg6 {[%clk 0:00:15.2]} 49. Qxg6+ {[%clk 0:00:04.2]} 49... Kf8 {[%clk
0:00:16.1]} 50. Qg8# {[%clk 0:00:04.8]} 1-0

[Event "*** Titled Tuesday Blitz"]
[Site "Chess.com"]
[Date "2021.04.27"]
[Round "7"]
[White "Lenyas66"]
[Black "GregShahade"]
[Result "0-1"]
[WhiteElo "2486"]
[BlackElo "2661"]
[TimeControl "180+1"]
[EndTime "11:17:14 PDT"]
[Termination "GregShahade won by resignation"]

1. e4 {[%clk 0:03:00.9]} 1... e5 {[%clk 0:03:00]} 2. Nf3 {[%clk 0:03:01.1]} 2...
Nc6 {[%clk 0:03:00.2]} 3. Bb5 {[%clk 0:03:01.2]} 3... a6 {[%clk 0:03:00.6]} 4.
Ba4 {[%clk 0:03:01.2]} 4... Nf6 {[%clk 0:03:01.2]} 5. O-O {[%clk 0:03:00.3]}
5... Be7 {[%clk 0:03:01.8]} 6. Bxc6 {[%clk 0:02:59.8]} 6... dxc6 {[%clk
0:03:01.3]} 7. d3 {[%clk 0:03:00.1]} 7... Bd6 {[%clk 0:02:58.5]} 8. Nbd2 {[%clk
0:02:59.5]} 8... Be6 {[%clk 0:02:58.8]} 9. b3 {[%clk 0:02:58.3]} 9... Nd7 {[%clk
0:02:55.7]} 10. Nc4 {[%clk 0:02:55.8]} 10... Bxc4 {[%clk 0:02:54]} 11. bxc4
{[%clk 0:02:49.8]} 11... Qe7 {[%clk 0:02:42.6]} 12. Bg5 {[%clk 0:02:44.5]} 12...
f6 {[%clk 0:02:41.9]} 13. Be3 {[%clk 0:02:43.6]} 13... Nc5 {[%clk 0:02:37.3]}
14. Rb1 {[%clk 0:02:38.1]} 14... b6 {[%clk 0:02:33.3]} 15. Nd2 {[%clk
0:02:35.8]} 15... O-O {[%clk 0:02:29.7]} 16. g3 {[%clk 0:02:29.9]} 16... Ne6
{[%clk 0:02:26.5]} 17. Kg2 {[%clk 0:02:27.9]} 17... a5 {[%clk 0:02:24.7]} 18.
Qg4 {[%clk 0:02:22.4]} 18... Bc5 {[%clk 0:02:08.6]} 19. Bxc5 {[%clk 0:02:03.3]}
19... Nxc5 {[%clk 0:02:07.7]} 20. f4 {[%clk 0:02:02.1]} 20... exf4 {[%clk
0:01:53.6]} 21. Rxf4 {[%clk 0:02:01.3]} 21... Ne6 {[%clk 0:01:51.8]} 22. Rf2
{[%clk 0:02:00]} 22... Rad8 {[%clk 0:01:46.6]} 23. Nf3 {[%clk 0:01:57.6]} 23...
Nc5 {[%clk 0:01:36.2]} 24. Re1 {[%clk 0:01:55.2]} 24... Qd7 {[%clk 0:01:32.2]}
25. Qf4 {[%clk 0:01:48.7]} 25... Rfe8 {[%clk 0:01:28.6]} 26. h4 {[%clk
0:01:43.8]} 26... Ne6 {[%clk 0:01:19.6]} 27. Qd2 {[%clk 0:01:43.6]} 27... Nd4
{[%clk 0:01:15]} 28. Nxd4 {[%clk 0:01:42.6]} 28... Qxd4 {[%clk 0:01:15.9]} 29.
h5 {[%clk 0:01:42.4]} 29... h6 {[%clk 0:01:15.4]} 30. Qf4 {[%clk 0:01:40.6]}
30... Re5 {[%clk 0:01:13.4]} 31. Qg4 {[%clk 0:01:30.9]} 31... Rde8 {[%clk
0:00:58.9]} 32. Ref1 {[%clk 0:01:22]} 32... Rg5 {[%clk 0:00:58]} 33. Qf4 {[%clk
0:01:18.5]} 33... Qe5 {[%clk 0:00:52.6]} 34. Qxe5 {[%clk 0:01:17.1]} 34... Rexe5
{[%clk 0:00:52.7]} 35. Rf4 {[%clk 0:01:08.4]} 35... Rxh5 {[%clk 0:00:52.2]} 36.
d4 {[%clk 0:01:08.1]} 36... Re7 {[%clk 0:00:47.8]} 37. g4 {[%clk 0:01:07.5]}
37... Rg5 {[%clk 0:00:47.9]} 38. Rh1 {[%clk 0:01:06.9]} 38... c5 {[%clk
0:00:42.5]} 39. d5 {[%clk 0:01:03]} 39... Rge5 {[%clk 0:00:40.9]} 40. Kf3 {[%clk
0:01:03.1]} 40... Kf7 {[%clk 0:00:41.1]} 41. a4 {[%clk 0:01:01.6]} 41... Ke8
{[%clk 0:00:41.2]} 42. Rh2 {[%clk 0:01:01]} 42... Kd7 {[%clk 0:00:41.6]} 43. c3
{[%clk 0:00:58.4]} 43... Kd6 {[%clk 0:00:41.8]} 44. Rh1 {[%clk 0:00:57.6]} 44...
Rg5 {[%clk 0:00:41.8]} 45. Rh2 {[%clk 0:00:57.3]} 45... Re8 {[%clk 0:00:42]} 46.
Rh1 {[%clk 0:00:57.3]} 46... Rh8 {[%clk 0:00:42.1]} 47. Rh5 {[%clk 0:00:48.5]}
47... Re8 {[%clk 0:00:37.4]} 48. Rh2 {[%clk 0:00:47.6]} 48... Ke7 {[%clk
0:00:35]} 49. Rh1 {[%clk 0:00:45.2]} 49... Rh8 {[%clk 0:00:30.3]} 50. Rh2 {[%clk
0:00:44.9]} 50... h5 {[%clk 0:00:28.1]} 51. Kg3 {[%clk 0:00:41.8]} 51... Rh6
{[%clk 0:00:22.1]} 52. Rh4 {[%clk 0:00:39.2]} 52... hxg4 {[%clk 0:00:21]} 53.
Rxh6 {[%clk 0:00:38.1]} 53... gxh6 {[%clk 0:00:20.5]} 54. Rxg4 {[%clk
0:00:28.4]} 54... Kd6 {[%clk 0:00:20.6]} 55. Rxg5 {[%clk 0:00:19.9]} 55... fxg5
{[%clk 0:00:17.8]} 56. Kg4 {[%clk 0:00:18.6]} 56... Ke5 {[%clk 0:00:18.1]} 57.
Kh5 {[%clk 0:00:17.1]} 57... Kxe4 {[%clk 0:00:17.7]} 0-1

[Event "*** Titled Tuesday Blitz"]
[Site "Chess.com"]
[Date "2021.04.27"]
[Round "7"]
[White "Buffy7"]
[Black "davidkalashian"]
[Result "0-1"]
[WhiteElo "2685"]
[BlackElo "2583"]
[TimeControl "180+1"]
[EndTime "11:17:16 PDT"]
[Termination "davidkalashian won by resignation"]

1. e4 {[%clk 0:03:00.9]} 1... c6 {[%clk 0:02:58]} 2. d4 {[%clk 0:02:58.8]} 2...
g6 {[%clk 0:02:58.9]} 3. Nc3 {[%clk 0:02:59.6]} 3... Bg7 {[%clk 0:02:58.5]} 4.
Nf3 {[%clk 0:02:59.4]} 4... d6 {[%clk 0:02:58.6]} 5. Be3 {[%clk 0:02:56.4]} 5...
Nd7 {[%clk 0:02:57.4]} 6. Qd2 {[%clk 0:02:56.3]} 6... b5 {[%clk 0:02:57.1]} 7.
a4 {[%clk 0:02:55.6]} 7... b4 {[%clk 0:02:55.6]} 8. Ne2 {[%clk 0:02:56.1]} 8...
a5 {[%clk 0:02:55.7]} 9. Ng3 {[%clk 0:02:54.4]} 9... Ngf6 {[%clk 0:02:55.3]} 10.
h3 {[%clk 0:02:50.5]} 10... O-O {[%clk 0:02:52.5]} 11. Bd3 {[%clk 0:02:47.3]}
11... c5 {[%clk 0:02:44.7]} 12. c3 {[%clk 0:02:44.9]} 12... Bb7 {[%clk
0:02:41.1]} 13. O-O {[%clk 0:02:44.3]} 13... Rc8 {[%clk 0:02:36.6]} 14. Rfe1
{[%clk 0:02:35.1]} 14... c4 {[%clk 0:02:17.4]} 15. Bc2 {[%clk 0:02:33.9]} 15...
b3 {[%clk 0:02:16.9]} 16. Bb1 {[%clk 0:02:34]} 16... e5 {[%clk 0:02:15.1]} 17.
Bh6 {[%clk 0:02:33.9]} 17... Re8 {[%clk 0:02:11.3]} 18. Nf5 {[%clk 0:02:21.2]}
18... Bxh6 {[%clk 0:01:46.9]} 19. Nxh6+ {[%clk 0:02:22.1]} 19... Kg7 {[%clk
0:01:45.8]} 20. Ng5 {[%clk 0:02:21.4]} 20... Re7 {[%clk 0:01:31.7]} 21. Nhxf7
{[%clk 0:02:21.4]} 21... Qb6 {[%clk 0:01:17.4]} 22. Nh6 {[%clk 0:02:11.8]} 22...
Rf8 {[%clk 0:01:01.6]} 23. d5 {[%clk 0:02:01.1]} 23... Nc5 {[%clk 0:01:01.5]}
24. Kh1 {[%clk 0:01:58.3]} 24... Nh5 {[%clk 0:00:57]} 25. Ng4 {[%clk 0:01:42.4]}
25... Nf4 {[%clk 0:00:38.8]} 26. g3 {[%clk 0:01:19.7]} 26... Nh5 {[%clk
0:00:19.5]} 27. Kg2 {[%clk 0:01:13.6]} 27... Bc8 {[%clk 0:00:19]} 28. Ne3 {[%clk
0:01:05.1]} 28... Qa6 {[%clk 0:00:17.2]} 29. Qe2 {[%clk 0:01:03.3]} 29... h6
{[%clk 0:00:16.2]} 30. Ne6+ {[%clk 0:00:36.3]} 30... Nxe6 {[%clk 0:00:15.2]} 31.
dxe6 {[%clk 0:00:35.8]} 31... Bxe6 {[%clk 0:00:16.1]} 32. Rf1 {[%clk 0:00:34]}
32... Ref7 {[%clk 0:00:15.8]} 33. Nd5 {[%clk 0:00:33]} 33... Qc6 {[%clk
0:00:13.3]} 34. Qd2 {[%clk 0:00:29.9]} 34... Qc5 {[%clk 0:00:12.6]} 35. Qe3
{[%clk 0:00:21]} 35... Qc8 {[%clk 0:00:11]} 36. g4 {[%clk 0:00:18.5]} 36... Nf4+
{[%clk 0:00:10.4]} 37. Nxf4 {[%clk 0:00:18.8]} 37... Rxf4 {[%clk 0:00:11.3]} 38.
f3 {[%clk 0:00:18.9]} 38... h5 {[%clk 0:00:07.1]} 39. Rf2 {[%clk 0:00:16.9]}
39... hxg4 {[%clk 0:00:07.2]} 40. hxg4 {[%clk 0:00:17.1]} 40... Bxg4 {[%clk
0:00:07.4]} 41. Qa7+ {[%clk 0:00:16.9]} 41... R8f7 {[%clk 0:00:06.7]} 42. Qe3
{[%clk 0:00:16.5]} 42... Bxf3+ {[%clk 0:00:06.5]} 43. Rxf3 {[%clk 0:00:17.4]}
43... Rxf3 {[%clk 0:00:07.4]} 44. Qxf3 {[%clk 0:00:18.3]} 44... Rxf3 {[%clk
0:00:07.6]} 45. Kxf3 {[%clk 0:00:19.2]} 45... Qh3+ {[%clk 0:00:08.1]} 46. Ke2
{[%clk 0:00:20.1]} 46... Qg2+ {[%clk 0:00:08.1]} 47. Ke3 {[%clk 0:00:21]} 47...
Qxb2 {[%clk 0:00:08.1]} 48. Bd3 {[%clk 0:00:21.9]} 48... Qxa1 {[%clk 0:00:07.5]}
49. Bxc4 {[%clk 0:00:22.2]} 49... Qxc3+ {[%clk 0:00:08]} 0-1

[Event "*** Titled Tuesday Blitz"]
[Site "Chess.com"]
[Date "2021.04.27"]
[Round "7"]
[White "VerdeNotte"]
[Black "starworld123"]
[Result "0-1"]
[WhiteElo "2877"]
[BlackElo "2772"]
[TimeControl "180+1"]
[EndTime "11:17:17 PDT"]
[Termination "starworld123 won by checkmate"]

1. e4 {[%clk 0:03:00.9]} 1... e5 {[%clk 0:02:53.1]} 2. Nf3 {[%clk 0:03:00.2]}
2... Nc6 {[%clk 0:02:50.9]} 3. Bc4 {[%clk 0:03:00.3]} 3... Bc5 {[%clk
0:02:49.5]} 4. c3 {[%clk 0:03:00.5]} 4... Nf6 {[%clk 0:02:48.5]} 5. d4 {[%clk
0:03:00.7]} 5... exd4 {[%clk 0:02:48.1]} 6. e5 {[%clk 0:03:00.8]} 6... d5 {[%clk
0:02:46.1]} 7. Bb5 {[%clk 0:03:01.2]} 7... Ne4 {[%clk 0:02:46.4]} 8. cxd4 {[%clk
0:03:01.6]} 8... Bb6 {[%clk 0:02:46.9]} 9. Nc3 {[%clk 0:03:01.7]} 9... O-O
{[%clk 0:02:46.9]} 10. Be3 {[%clk 0:03:01.8]} 10... Bg4 {[%clk 0:02:45.5]} 11.
h3 {[%clk 0:03:02.1]} 11... Bh5 {[%clk 0:02:41.6]} 12. Qa4 {[%clk 0:03:02.3]}
12... Ne7 {[%clk 0:02:07.7]} 13. Bd3 {[%clk 0:03:01.5]} 13... f5 {[%clk
0:01:59.3]} 14. exf6 {[%clk 0:03:01.3]} 14... Nxf6 {[%clk 0:01:59.1]} 15. Ne5
{[%clk 0:03:01.6]} 15... Be8 {[%clk 0:01:48.7]} 16. Qc2 {[%clk 0:03:00.3]} 16...
Nc6 {[%clk 0:01:49.1]} 17. Nxc6 {[%clk 0:02:59]} 17... Bxc6 {[%clk 0:01:50]} 18.
O-O {[%clk 0:02:56.5]} 18... Qe8 {[%clk 0:01:46.7]} 19. Rfe1 {[%clk 0:02:49.3]}
19... Qf7 {[%clk 0:01:39.4]} 20. b4 {[%clk 0:02:42.2]} 20... Bd7 {[%clk
0:01:27.2]} 21. a4 {[%clk 0:02:30.8]} 21... c6 {[%clk 0:01:26.5]} 22. Qc1 {[%clk
0:02:17.6]} 22... Qh5 {[%clk 0:01:09.6]} 23. Ne2 {[%clk 0:02:09.1]} 23... Bc7
{[%clk 0:01:06.9]} 24. Bf4 {[%clk 0:02:04.2]} 24... Bxf4 {[%clk 0:01:03.8]} 25.
Nxf4 {[%clk 0:02:05.1]} 25... Qf7 {[%clk 0:01:03.6]} 26. Ra2 {[%clk 0:01:57]}
26... Ne4 {[%clk 0:00:59.7]} 27. Rxe4 {[%clk 0:01:51.6]} 27... Kh8 {[%clk
0:00:45.9]} 28. Nxd5 {[%clk 0:01:36.5]} 28... Qxd5 {[%clk 0:00:46.4]} 29. Rae2
{[%clk 0:01:26.7]} 29... Rae8 {[%clk 0:00:37.3]} 30. Qf4 {[%clk 0:01:16.2]}
30... Rxf4 {[%clk 0:00:33.3]} 31. Rxe8+ {[%clk 0:01:16]} 31... Bxe8 {[%clk
0:00:34.2]} 32. Rxe8+ {[%clk 0:01:16.2]} 32... Qg8 {[%clk 0:00:34.3]} 33. Rxg8+
{[%clk 0:01:16.2]} 33... Kxg8 {[%clk 0:00:35.2]} 34. b5 {[%clk 0:01:09.6]} 34...
Rxd4 {[%clk 0:00:34.7]} 35. Bc2 {[%clk 0:01:10.1]} 35... cxb5 {[%clk 0:00:32.3]}
36. axb5 {[%clk 0:01:10]} 36... a5 {[%clk 0:00:32.2]} 37. bxa6 {[%clk
0:01:08.1]} 37... bxa6 {[%clk 0:00:33.1]} 38. Kf1 {[%clk 0:01:08.8]} 38... Kf7
{[%clk 0:00:32.3]} 39. Ke2 {[%clk 0:01:09.2]} 39... Ke6 {[%clk 0:00:32.8]} 40.
Bxh7 {[%clk 0:01:08.5]} 40... a5 {[%clk 0:00:32.1]} 41. Ke3 {[%clk 0:01:06.6]}
41... Ke5 {[%clk 0:00:28.3]} 42. g3 {[%clk 0:01:01.2]} 42... a4 {[%clk
0:00:26.9]} 43. f4+ {[%clk 0:00:59]} 43... Kd5 {[%clk 0:00:26.7]} 44. h4 {[%clk
0:00:55.5]} 44... a3 {[%clk 0:00:26.3]} 45. h5 {[%clk 0:00:55.2]} 45... Kc5
{[%clk 0:00:25.5]} 46. Bb1 {[%clk 0:00:49.6]} 46... Rb4 {[%clk 0:00:15.5]} 47.
Ba2 {[%clk 0:00:49.9]} 47... Rb2 {[%clk 0:00:15.8]} 48. Bf7 {[%clk 0:00:44.9]}
48... a2 {[%clk 0:00:16.3]} 49. Bxa2 {[%clk 0:00:44.4]} 49... Rxa2 {[%clk
0:00:17.2]} 50. Ke4 {[%clk 0:00:40.7]} 50... Kd6 {[%clk 0:00:17.6]} 51. Kf5
{[%clk 0:00:40.3]} 51... Ke7 {[%clk 0:00:18.1]} 52. Kg6 {[%clk 0:00:37.4]} 52...
Rg2 {[%clk 0:00:17.5]} 53. Kxg7 {[%clk 0:00:34.6]} 53... Rxg3+ {[%clk 0:00:18]}
54. Kh7 {[%clk 0:00:34.4]} 54... Kf7 {[%clk 0:00:16.7]} 55. h6 {[%clk
0:00:29.6]} 55... Rh3 {[%clk 0:00:16.6]} 56. f5 {[%clk 0:00:30.2]} 56... Rh2
{[%clk 0:00:16.8]} 57. f6 {[%clk 0:00:29.8]} 57... Rh3 {[%clk 0:00:16.9]} 58.
Kh8 {[%clk 0:00:28.2]} 58... Rxh6# {[%clk 0:00:17.8]} 0-1

[Event "*** Titled Tuesday Blitz"]
[Site "Chess.com"]
[Date "2021.04.27"]
[Round "7"]
[White "TheKingOfTheForest"]
[Black "Matensien"]
[Result "1-0"]
[WhiteElo "2253"]
[BlackElo "2340"]
[TimeControl "180+1"]
[EndTime "11:17:17 PDT"]
[Termination "TheKingOfTheForest won by resignation"]

1. d4 {[%clk 0:02:51.6]} 1... Nf6 {[%clk 0:02:59.8]} 2. c4 {[%clk 0:02:51.5]}
2... e6 {[%clk 0:02:59.9]} 3. Nc3 {[%clk 0:02:51.4]} 3... Bb4 {[%clk 0:02:59.5]}
4. Qc2 {[%clk 0:02:49.9]} 4... O-O {[%clk 0:02:59.3]} 5. a3 {[%clk 0:02:49.9]}
5... Bxc3+ {[%clk 0:02:43.5]} 6. Qxc3 {[%clk 0:02:50.8]} 6... b6 {[%clk
0:02:43.8]} 7. Bg5 {[%clk 0:02:48.6]} 7... Bb7 {[%clk 0:02:37.1]} 8. e3 {[%clk
0:02:48.3]} 8... d6 {[%clk 0:02:31.9]} 9. Qc2 {[%clk 0:02:46.6]} 9... Nbd7
{[%clk 0:02:23.8]} 10. Ne2 {[%clk 0:02:46.2]} 10... h6 {[%clk 0:02:24.1]} 11.
Bh4 {[%clk 0:02:42.9]} 11... Qe7 {[%clk 0:02:24.6]} 12. Nc3 {[%clk 0:02:42.3]}
12... e5 {[%clk 0:02:22.6]} 13. d5 {[%clk 0:02:33.8]} 13... a5 {[%clk
0:02:20.7]} 14. Be2 {[%clk 0:02:32.1]} 14... g5 {[%clk 0:02:12.4]} 15. Bg3
{[%clk 0:02:31.7]} 15... Nh7 {[%clk 0:02:12.8]} 16. Qf5 {[%clk 0:02:20.7]} 16...
Bc8 {[%clk 0:02:08.1]} 17. Qh3 {[%clk 0:02:05.5]} 17... Kg7 {[%clk 0:02:00.4]}
18. Bg4 {[%clk 0:02:02.4]} 18... Nc5 {[%clk 0:01:51.2]} 19. Bxc8 {[%clk
0:01:33.6]} 19... Raxc8 {[%clk 0:01:52.1]} 20. O-O {[%clk 0:01:32.8]} 20... f5
{[%clk 0:01:49.4]} 21. f3 {[%clk 0:01:24.9]} 21... a4 {[%clk 0:01:29.7]} 22.
Rae1 {[%clk 0:01:21.2]} 22... Rce8 {[%clk 0:01:17.5]} 23. Kh1 {[%clk 0:01:20.8]}
23... Rf7 {[%clk 0:01:04.3]} 24. e4 {[%clk 0:01:16.2]} 24... f4 {[%clk
0:00:52.7]} 25. Bf2 {[%clk 0:01:16.3]} 25... Nf6 {[%clk 0:00:48.6]} 26. Bxc5
{[%clk 0:01:10.8]} 26... bxc5 {[%clk 0:00:49.5]} 27. Nxa4 {[%clk 0:01:06]} 27...
h5 {[%clk 0:00:49.2]} 28. g3 {[%clk 0:00:59.2]} 28... Qd7 {[%clk 0:00:27.7]} 29.
Qxd7 {[%clk 0:00:57.7]} 29... Nxd7 {[%clk 0:00:28.6]} 30. Nc3 {[%clk 0:00:53.2]}
30... fxg3 {[%clk 0:00:27]} 31. hxg3 {[%clk 0:00:54.1]} 31... Rb8 {[%clk
0:00:25]} 32. Nb5 {[%clk 0:00:50.6]} 32... Nb6 {[%clk 0:00:20.6]} 33. b3 {[%clk
0:00:47]} 33... Nc8 {[%clk 0:00:19.9]} 34. Kg2 {[%clk 0:00:41.3]} 34... Rb7
{[%clk 0:00:19.8]} 35. a4 {[%clk 0:00:39.9]} 35... Na7 {[%clk 0:00:04.1]} 36.
Rh1 {[%clk 0:00:38.7]} 36... Kg6 {[%clk 0:00:03.8]} 37. Rhf1 {[%clk 0:00:33.1]}
37... Nxb5 {[%clk 0:00:04]} 38. axb5 {[%clk 0:00:34]} 38... Ra7 {[%clk
0:00:02.9]} 39. Ra1 {[%clk 0:00:34.6]} 39... Rxa1 {[%clk 0:00:02]} 40. Rxa1
{[%clk 0:00:35.5]} 40... g4 {[%clk 0:00:01.1]} 41. fxg4 {[%clk 0:00:22.8]} 41...
hxg4 {[%clk 0:00:02]} 42. Ra7 {[%clk 0:00:22.5]} 42... Rf3 {[%clk 0:00:02.5]}
43. Rxc7 {[%clk 0:00:20.5]} 43... Rxb3 {[%clk 0:00:03]} 44. Rc6 {[%clk
0:00:20.9]} 44... Rb2+ {[%clk 0:00:03.6]} 45. Kf1 {[%clk 0:00:20.9]} 45... Kg5
{[%clk 0:00:03.2]} 46. Rxd6 {[%clk 0:00:19.9]} 46... Rb4 {[%clk 0:00:03.7]} 47.
Rc6 {[%clk 0:00:19]} 47... Rxc4 {[%clk 0:00:03.7]} 48. d6 {[%clk 0:00:19.2]}
48... Rd4 {[%clk 0:00:03.3]} 49. b6 {[%clk 0:00:18.9]} 49... Rd3 {[%clk
0:00:03.1]} 50. b7 {[%clk 0:00:18.5]} 50... Rb3 {[%clk 0:00:03.2]} 51. d7 {[%clk
0:00:18]} 51... Rb1+ {[%clk 0:00:03.1]} 52. Ke2 {[%clk 0:00:18.1]} 52... Rb2+
{[%clk 0:00:04]} 53. Kd3 {[%clk 0:00:18.3]} 53... Rxb7 {[%clk 0:00:04.9]} 54.
d8=Q+ {[%clk 0:00:18]} 1-0

[Event "*** Titled Tuesday Blitz"]
[Site "Chess.com"]
[Date "2021.04.27"]
[Round "7"]
[White "Chandradi"]
[Black "CrushingKings"]
[Result "1-0"]
[WhiteElo "2387"]
[BlackElo "2507"]
[TimeControl "180+1"]
[EndTime "11:17:18 PDT"]
[Termination "Chandradi won on time"]

1. c4 {[%clk 0:02:39.5]} 1... Nf6 {[%clk 0:03:00.3]} 2. g3 {[%clk 0:02:39.5]}
2... g6 {[%clk 0:03:01.2]} 3. Bg2 {[%clk 0:02:39.9]} 3... Bg7 {[%clk 0:03:02.1]}
4. Nc3 {[%clk 0:02:40.4]} 4... O-O {[%clk 0:03:02.7]} 5. Nf3 {[%clk 0:02:40.8]}
5... d6 {[%clk 0:03:03.4]} 6. O-O {[%clk 0:02:40.1]} 6... c5 {[%clk 0:03:04]} 7.
d4 {[%clk 0:02:37.3]} 7... Nbd7 {[%clk 0:03:04.7]} 8. b3 {[%clk 0:02:35]} 8...
Rb8 {[%clk 0:03:05.1]} 9. Bb2 {[%clk 0:02:34.7]} 9... a6 {[%clk 0:03:05.5]} 10.
a4 {[%clk 0:02:26.3]} 10... b6 {[%clk 0:03:05.4]} 11. e4 {[%clk 0:02:22.5]}
11... Bb7 {[%clk 0:03:05]} 12. Qe2 {[%clk 0:02:22.2]} 12... Ne8 {[%clk
0:02:52.3]} 13. d5 {[%clk 0:02:19.7]} 13... Nc7 {[%clk 0:02:51.8]} 14. Ne1
{[%clk 0:01:43.9]} 14... Bc8 {[%clk 0:02:51.4]} 15. Nd1 {[%clk 0:01:25.2]} 15...
Bxb2 {[%clk 0:02:46.2]} 16. Nxb2 {[%clk 0:01:26.1]} 16... b5 {[%clk 0:02:46.7]}
17. Qc2 {[%clk 0:01:03.1]} 17... Ne8 {[%clk 0:02:30.6]} 18. Ned3 {[%clk
0:01:01.8]} 18... Qb6 {[%clk 0:02:29]} 19. Rab1 {[%clk 0:00:58.8]} 19... Qa5
{[%clk 0:02:13.4]} 20. f4 {[%clk 0:00:55.5]} 20... e6 {[%clk 0:02:01.1]} 21. e5
{[%clk 0:00:52.1]} 21... exd5 {[%clk 0:01:46.6]} 22. cxd5 {[%clk 0:00:51.5]}
22... Ng7 {[%clk 0:01:38]} 23. g4 {[%clk 0:00:44.1]} 23... Re8 {[%clk
0:01:36.3]} 24. Rbe1 {[%clk 0:00:24.9]} 24... Bb7 {[%clk 0:01:35.8]} 25. e6
{[%clk 0:00:18.9]} 25... fxe6 {[%clk 0:01:35.7]} 26. dxe6 {[%clk 0:00:19.1]}
26... Rxe6 {[%clk 0:01:13.5]} 27. Bxb7 {[%clk 0:00:18.9]} 27... Rxb7 {[%clk
0:01:13.4]} 28. Qg2 {[%clk 0:00:17.9]} 28... Rxe1 {[%clk 0:00:43]} 29. Rxe1
{[%clk 0:00:18.8]} 29... Rb8 {[%clk 0:00:43.5]} 30. Qd5+ {[%clk 0:00:18.8]}
30... Kh8 {[%clk 0:00:43.3]} 31. Qxd6 {[%clk 0:00:18.4]} 31... Qb6 {[%clk
0:00:32]} 32. Qxd7 {[%clk 0:00:16.6]} 32... c4+ {[%clk 0:00:32]} 33. Nf2 {[%clk
0:00:16.8]} 33... c3 {[%clk 0:00:31.2]} 34. Nd3 {[%clk 0:00:16.2]} 34... Rd8
{[%clk 0:00:31.5]} 35. Qe7 {[%clk 0:00:12.4]} 35... c2 {[%clk 0:00:29.6]} 36.
Kg2 {[%clk 0:00:11.7]} 36... Qc6+ {[%clk 0:00:27.8]} 37. Qe4 {[%clk 0:00:11.4]}
37... Qc3 {[%clk 0:00:27.4]} 38. Rc1 {[%clk 0:00:10.5]} 38... Re8 {[%clk
0:00:24.4]} 39. Qb4 {[%clk 0:00:08.6]} 39... Qc6+ {[%clk 0:00:22.8]} 40. Kg3
{[%clk 0:00:07.4]} 40... Re3+ {[%clk 0:00:22.9]} 41. Kh4 {[%clk 0:00:07.9]}
41... Ne6 {[%clk 0:00:17.6]} 42. Qe7 {[%clk 0:00:06.1]} 42... Qf3 {[%clk
0:00:08.1]} 43. Qf6+ {[%clk 0:00:03.4]} 43... Kg8 {[%clk 0:00:08.2]} 44. Rxc2
{[%clk 0:00:03.6]} 44... g5+ {[%clk 0:00:02.1]} 45. fxg5 {[%clk 0:00:02.7]}
45... Qe4 {[%clk 0:00:02.6]} 46. Rc8+ {[%clk 0:00:02.1]} 1-0